Cogmind - Beta 14 @@@ ROGUE MODE // 2024.10.19 @ 15:54:59 Player: saltine Result: Destroyed by LX-KXF(R) with Subdweller Machine Gun Performance ------------- Evolutions (0) 0 Regions Visited (3) 600 Robots Destroyed (12) 60 Value Destroyed (268) 268 Prototype IDs (2) 40 Alien Tech Used (0) 0 Bonus (0) 0 TOTAL SCORE: 968 Bonus ------- None Cogmind --------- Core Integrity 0/250 Matter 243/300 Energy 265/265 System Corruption 2% Temperature Cool (0) Movement Rolling (115) Ox1 Location -10/Subcaves Parts ------- > --- POWER (1) -------- Improved Ion Engine > --- PROPULSION (2) --- Compact Wheel (fused) > --- UTILITY (2) ------ Medium Storage Unit Seismic Detector > --- WEAPON (2) ------- Light Assault Rifle (fused) Grenade Launcher > --- INVENTORY (10) --- Improved Ion Engine Medium Matter Pod (100) Hardened Light Armor Plating Hardened Light Armor Plating Hardened Light Armor Plating Hardened Light Armor Plating EM Pulse Gun Peak State ------------ > --- POWER ------------ Improved Ion Engine > --- PROPULSION ------- Compact Wheel Subdweller Monowheel > --- UTILITY ---------- Medium Storage Unit Hardened Light Armor Plating > --- WEAPON ----------- Light Assault Rifle Grenade Launcher > --- INVENTORY -------- Improved Ion Engine Medium Matter Pod Seismic Detector Hardened Light Armor Plating Hardened Light Armor Plating Hardened Light Armor Plating EM Pulse Gun [Rating: 11] Favorites ----------- Power Improved Ion Engine Engine Improved Ion Engine Propulsion Light Treads Treads Light Treads Leg Aluminum Leg Wheel Compact Wheel Utility Medium Storage Unit Device Seismic Detector Storage Medium Storage Unit Protection Hardened Light Armor Plating Weapon Light Assault Rifle Energy Gun EM Pulse Gun Ballistic Gun Light Assault Rifle Launcher Grenade Launcher Build | -11 -10 -10 -10 ------- Run | Yrd Mat Min Sub Slots Evolved . | . . . . Power . | . . . . Propulsion . | . . . . Utility . | . . . . Weapon . | . . . . Parts Attached 16 | 4 2 . 10 Power 1 | . 1 . . Engine 1 | . 1 . . Core . | . . . . Reactor . | . . . . Propulsion 4 | 2 . . 2 Treads 2 | 2 . . . Leg . | . . . . Wheel 2 | . . . 2 Hover . | . . . . Flight . | . . . . Utility 6 | 1 1 . 4 Device 3 | 1 . . 2 Storage 1 | . 1 . . Processor . | . . . . Hackware . | . . . . Protection 2 | . . . 2 Artifact . | . . . . Weapon 5 | 1 . . 4 Energy Gun 1 | . . . 1 Energy Cannon . | . . . . Ballistic Gun 2 | 1 . . 1 Ballistic Cannon . | . . . . Launcher 2 | . . . 2 Special Weapon . | . . . . Impact Weapon . | . . . . Slashing Weapon . | . . . . Piercing Weapon . | . . . . Special Melee Weapon . | . . . . Unidentified Prototypes . | . . . . Parts Lost 5 | . . . 5 Power . | . . . . Propulsion 3 | . . . 3 Utility . | . . . . Weapon 2 | . . . 2 Highest Loss Streak 3 | . . . 3 To Critical Strikes . | . . . . Average Slot Usage (%) 97 | . 100 100 96 Engine 14 | . 14 14 14 Treads 23 | . 28 28 20 Wheel 3 | . . . 5 Device 13 | . 14 14 12 Storage 14 | . 14 14 14 Energy Gun 1 | . . . 1 Ballistic Gun 25 | . 28 28 24 Peak Build Rating 11 | 7 9 9 11 Average Rating 8 | 6 7 9 8 On Entrance 7 | 6 7 9 9 Naked Turns . | . . . . Heaviest Build 26 | 14 21 21 26 Greatest Support 40 | 40 40 40 40 Greatest Overweight (x) 1 | . . . 1 Average Overweight (x) . | . . . . Largest Inventory Capacity 10 | 8 10 10 10 Average Capacity 9 | 8 9 10 10 Most Carried 10 | 6 10 10 10 Average Carried 8 | 4 7 10 8 Final Capacity 10 | 8 10 10 10 Final Carried 10 | 4 10 10 7 Class Distribution -------------------- 100% | Mutant Dominant Class ---------------- Mutant | -10/Materials Mutant | -10/Mines Mutant | -10/Subcaves Resources | -11 -10 -10 -10 ----------- Run | Yrd Mat Min Sub Matter Collected 641 | 260 . 25 356 Remotely . | . . . . Salvage Created 438 | 93 . 25 320 Parts 35 | 5 . 3 27 Haulers Intercepted . | . . . . Recyclers Shooed . | . . . . Parts Field Recycled . | . . . . Retrieved Matter . | . . . . Parts Self-Destructed 8 | . . . 8 Prevented . | . . . . Kills | -11 -10 -10 -10 ------- Run | Yrd Mat Min Sub Combat Hostiles Destroyed 10 | . . 2 8 Guns 10 | . . 2 8 Classes Destroyed 6 | 2 . 1 3 Tunneler 1 | 1 . . . Recycler 1 | 1 . . . Swarmer 5 | . . 2 3 Sentry 1 | . . . 1 Artisan 1 | . . . 1 Subdweller 4 | . . . 4 Best Kill Streak 3 | 2 . 1 3 Combat Bots Only 3 | . . 1 3 Max Kills in Single Turn 1 | 1 . 1 1 Gunslinging . | . . . . Exploded . | . . . . Melee . | . . . . Uniques/NPCs Destroyed . | . . . . Combat | -11 -10 -10 -10 -------- Run | Yrd Mat Min Sub Hostile Shots Fired 90 | . . 5 85 Missed 27 | . . 2 25 Damage Taken 1040 | . 48 23 969 Core 267 | . 13 7 247 Absorbed by Shields . | . . . . Core Remaining (%) 100 | 100 . . . Volleys Fired 68 | 5 . 5 58 Largest 2 | 2 . 2 2 Hottest 60 | 40 . 40 60 Shots Fired 119 | 10 . 10 99 Gun 114 | 10 . 10 94 Cannon . | . . . . Launcher 5 | . . . 5 Special . | . . . . Kinetic 112 | 10 . 10 92 Thermal . | . . . . Explosive 5 | . . . 5 Electromagnetic 2 | . . . 2 Robot Hit Streak 18 | 5 . 3 18 Robot Miss Streak 7 | 1 . 4 7 Penetration Max . | . . . . Secondary Targets 3 | . . . 3 Max Gunslinging Chain 1 | . . . 1 Shots Hit Robots 73 | 6 . 3 64 Core Hits 24 | 2 . 2 20 Critical Kills . | . . . . Critical Parts Destroyed . | . . . . Critical Strikes . | . . . . Melee Attacks . | . . . . Impact . | . . . . Slashing . | . . . . Piercing . | . . . . Sneak Attacks . | . . . . Combat Hostiles . | . . . . Follow-up Attacks . | . . . . Damage Inflicted 702 | 71 . 36 595 Guns 702 | 71 . 36 595 Cannons . | . . . . Explosions . | . . . . Melee . | . . . . Ramming . | . . . . Kinetic 690 | 71 . 36 583 Thermal . | . . . . Explosive . | . . . . Electromagnetic 12 | . . . 12 Impact . | . . . . Slashing . | . . . . Piercing . | . . . . Highest Corruption 2 | . 2 2 2 Average Corruption 2 | . 2 2 2 Corruption Purged . | . . . . Corruption Blocked . | . . . . Effects 25 | . 1 8 16 Message Errors 2 | . . 1 1 Matter Fused 8 | . . 5 3 Heat Flow Errors 5 | . . . 5 Energy Discharges 4 | . . 2 2 Parts Fused 2 | . . . 2 Data Loss (minor) 3 | . 1 . 2 Alerts 1 | . . . 1 Overload Shots . | . . . . Overflow Damage . | . . . . Projectiles . | . . . . Explosions . | . . . . Melee . | . . . . Knockbacks . | . . . . Impact . | . . . . Kinetic . | . . . . Secondary . | . . . . Self-Inflicted Damage . | . . . . Shots . | . . . . Rammed . | . . . . Targets Rammed . | . . . . Kicked . | . . . . Crushed . | . . . . Highest Temperature 154 | . . 2 154 Average Temperature 48 | . . 1 72 Received Heat Transfer 144 | . . . 144 Siege Activations . | . . . . Robots Corrupted . | . . . . Combat Hostiles . | . . . . Parts Fried . | . . . . Impact Corruptions . | . . . . Robots Melted . | . . . . Combat Hostiles . | . . . . Parts Melted . | . . . . Heat Transferred . | . . . . Parts Sabotaged . | . . . . Parts Stolen . | . . . . Parts Stripped . | . . . . Power Chain Reactions . | . . . . Alert | -11 -10 -10 -10 ------- Run | Yrd Mat Min Sub Peak Influence 99 | 10 38 99 . Initial 14 | . 6 14 . Average 53 | 6 18 68 . Maximum Alert Level . | . . . . Low Security (%) 100 | 100 100 100 . Level 1 . | . . . . Level 2 . | . . . . Level 3 . | . . . . Level 4 . | . . . . Level 5 . | . . . . High Security . | . . . . Max Security . | . . . . Squads Dispatched . | . . . . Investigation . | . . . . Extermination . | . . . . Reinforcement . | . . . . Assault . | . . . . Garrison . | . . . . Intercept . | . . . . Searches Triggered . | . . . . Construction Impeded . | . . . . Haulers Reinforced . | . . . . Active Scanning Responses . | . . . . Cargo Convoy Interrupts . | . . . . Stealth | -11 -10 -10 -10 --------- Run | Yrd Mat Min Sub Distress Signals . | . . . . Communications Jammed . | . . . . Distress Signals . | . . . . Times Spotted 17 | . 1 5 11 Peak Tracking Total 3 | . 1 3 3 Tactical Retreats 2 | . . 2 . Traps | -11 -10 -10 -10 ------- Run | Yrd Mat Min Sub Traps Triggered 3 | . 3 . . Indirectly . | . . . . Trap Hack Attempts . | . . . . Triggered . | . . . . Disarmed . | . . . . Reprogrammed . | . . . . Reused . | . . . . Traps Extracted . | . . . . Installed . | . . . . Triggered . | . . . . Machines | -11 -10 -10 -10 ---------- Run | Yrd Mat Min Sub Machines Disabled . | . . . . Max in Single Turn . | . . . . Machines Repaired . | . . . . Machines Dismantled . | . . . . Machines Sabotaged . | . . . . Overloaded Fab Kills . | . . . . Hacking | -11 -10 -10 -10 --------- Run | Yrd Mat Min Sub Machines Accessed 3 | . 3 . . Terminals 3 | . 3 . . Fabricators . | . . . . Repair Stations . | . . . . Recycling Units . | . . . . Scanalyzers . | . . . . Garrison Access . | . . . . Total Hacks 10 | . 10 . . Successful 3 | . 3 . . Failed 7 | . 7 . . Catastrophic . | . . . . Database Lockouts . | . . . . Manual 2 | . 2 . . Terminals 10 | . 10 . . Fabricators . | . . . . Repair Stations . | . . . . Recycling Units . | . . . . Scanalyzers . | . . . . Garrison Access . | . . . . Terminal Hacks 3 | . 3 . . Prototype ID Bank 1 | . 1 . . Branch Access Points 1 | . 1 . . Hauler Manifests 1 | . 1 . . Fabricator Hacks . | . . . . Repair Station Hacks . | . . . . Recycling Unit Hacks . | . . . . Scanalyzer . | . . . . Garrison Access Hacks . | . . . . Unauthorized Hacks . | . . . . Terminals . | . . . . Fabricators . | . . . . Repair Stations . | . . . . Recycling Units . | . . . . Scanalyzers . | . . . . Garrison Access . | . . . . Data Cores Recovered . | . . . . Used . | . . . . Hacking Detections 3 | . 3 . . Full Trace Events . | . . . . Feedback Events . | . . . . Feedback Blocked . | . . . . Robot Schematics Acquired . | . . . . Robots Built . | . . . . Authchips . | . . . . Time . | . . . . Total Robot Build Rating . | . . . . Part Schematics Acquired . | . . . . Parts Built . | . . . . Authchips . | . . . . Time . | . . . . Total Part Build Rating . | . . . . Parts Repaired . | . . . . Time . | . . . . Parts Recycled . | . . . . Recycled Matter . | . . . . Retrieved Matter . | . . . . Retrieved Components . | . . . . Parts Scanalyzed . | . . . . Part Schematics Acquired . | . . . . Parts Damaged . | . . . . Bothacking | -11 -10 -10 -10 ------------ Run | Yrd Mat Min Sub Used RIF Installer . | . . . . Robots Hacked . | . . . . Non-combat . | . . . . Combat . | . . . . Robot Hacks Applied . | . . . . Relay Couplers Released . | . . . . Fabnet Peak Effective % . | . . . . Robots Rewired . | . . . . Allies Hacked . | . . . . Hacks Repelled . | . . . . Allies | -11 -10 -10 -10 -------- Run | Yrd Mat Min Sub Total Allies . | . . . . Largest Group . | . . . . Highest-Rated Group . | . . . . Highest-Rated Ally . | . . . . Total Orders . | . . . . Ally Attacks . | . . . . Total Damage . | . . . . Kills . | . . . . Allies Corrupted . | . . . . Allies Melted . | . . . . Intel | -11 -10 -10 -10 ------- Run | Yrd Mat Min Sub Robot Analysis Total . | . . . . Derelict Logs Recovered 2 | . . 1 1 Drone Launches . | . . . . Drone Recoveries . | . . . . Exploration | -11 -10 -10 -10 ------------- Run | Yrd Mat Min Sub Turns Passed 1830 | 41 167 491 1131 Spaces Moved 848 | 13 97 103 635 Core . | . . . . Treads 648 | 13 97 103 435 Legs . | . . . . Wheels 200 | . . . 200 Hover . | . . . . Flight . | . . . . Fastest Speed 115 | 160 160 160 115 Average Speed 149 | 160 160 160 145 Slowest Speed 160 | 160 160 160 160 Overloaded Moves . | . . . . Propulsion Burnouts . | . . . . Robots Hopped . | . . . . Cave-ins Triggered . | . . . . Exploration Rate (%) 23 | 2 30 24 39 Regions Visited 3 Branch Regions 2 Pre-discovered Areas 1 | . . 1 . Known Exits Taken 1 | . 1 . . Unknown Exits Taken 2 | 1 . 1 . Scrap Searched . | . . . . Spaces Dug . | . . . . Terrain Destroyed 17 | . . . 17 Melee . | . . . . Projectile . | . . . . AOE 17 | . . . 17 Terrain Rammed . | . . . . Walls Destroyed . | . . . . Machines Disabled . | . . . . Actions | -11 -10 -10 -10 --------- Run | Yrd Mat Min Sub Total 1307 | 23 110 420 754 Wait 363 | . . 313 50 Move 845 | 12 96 102 635 Hop . | . . . . Pick Up 8 | . 8 . . Fast Attach 2 | 1 . . 1 Attach 4 | . . . 4 Detach 1 | . . . 1 Swap 10 | 3 2 . 5 Drop 6 | 2 4 . . Fire 68 | 5 . 5 58 Melee . | . . . . Ram . | . . . . Kick . | . . . . Crush . | . . . . Escape Stasis . | . . . . Rewire . | . . . . Trap . | . . . . Miscellaneous . | . . . . Route ------- -11/Scrapyard -10/Materials -10/Mines -10/Subcaves (discovered 1 exit: [*Mat]) History --------- Turn | Location | Event 7 | -11/Scrapyard | Discovered new exit (range 3) 42 | -11/Scrapyard | Entered Materials 123 | -10/Materials | Identified exit to Mines 209 | -10/Materials | Entered Mines 304 | -10/Mines | Build established: Mutant 682 | -10/Mines | Discovered new exit (range 5) 700 | -10/Mines | Entered Subcaves 1091 | -10/Subcaves | Discovered new exit (range 8) 1095 | -10/Subcaves | Learned Materials stockpile data 1531 | -10/Subcaves | Core integrity fell below 50% 1549 | -10/Subcaves | Core integrity fell below 20% 1575 | -10/Subcaves | Lost 3 parts (2n1w) 1831 | -10/Subcaves | Destroyed by LX-KXF(R) with Subdweller Machine Gun Last Messages --------------- 01541_ LN-G4D(R) affixes Scrap Shield Fragment to Scrap Shield. 01542_ Lgt. Treads destroyed. 01546_ Critical hit (Destroy). 01549_ System corrupted: Component data lost. 01562_ LN-G4D(R) destroyed. 01566_ Acquired 52 matter. 01567_ Acquired 49 matter. 01568_ Subatomizers dissect the Disposable Heat Sink. 01571_ System corrupted: Com. Wheel fused. 01579_ Subatomizers dissect the Disposable Heat Sink. 01579_ Acquired Sub. Monowheel. 01580_ Acquired 4 matter. 01587_ System corrupted: Heat flow error (+141). 01620_ The unstable cave ceiling collapses. 01648_ System corrupted: IFF burst signal emitted. 01675_ System corrupted: Heat flow error (+145). 01712_ Sub. Monowheel destroyed. 01714_ 4B-IIR(R) destroyed. 01714_ Acquired 36 matter. 01721_ System corrupted: Heat flow error (+193). Map ----- +----------------------------------------------------+ | ????????????## #?????##### ###### | | ???????????## #?????# #### ## # | | ???????????# ####???## ## ## | | ???????????# ##???# ### ## #? | | ???????????# ##??# ####??## ## ##? | | ????###?##### ### #?????## ### "#?? | | ????# ### ## #?????# ### & "#??? | | ???## ##?????## ### ! & #??? | | ??## #??????## ##" #??? | | ?## #????# " " #??? | | ## ###????#"" " #####??? | | ### ### #??????####"#### ##????? | | ##?# #??# #??????######??# #????? | | #?# ##???# #####???#"##????# #????? | | ## #?#### ##?????### ###?# ##???# #????? | | ##### #???###??????## ### "##??## #????? | | ????## ###???####?????# ## " #???# #????? | | ?????###???? #????#" ## " #??## #????? | | ?#?????????? ###?##" " ## " #### ##??? | | ? ???????????# ""###"""### " ## ##??? | | ??????????# """ ""### ### #??? | | ?????????? """" """ ## #### ##?? | | #??????????? ""## " ##"" #?# #?? | | #?????????????????# "" ## #### #?? | | ??????????????????# ### #??## #?? | | ??#?????????????????## @ ####?####???# ##? | | ? ##?????????????????# ######?###### #? | | ###???????? ## ## ### ## ##? | | ????????? ### # ### | | ????????? R ## #?## | | ???????????? #??#### ##??### ## ## | | ????????????# ????????####?????## ### ### ##### | | ????????????????????????????????###?### ##?###???? | | ??????????????????????????????????????###????????? | | ?????????????????????????????????????????????????? | | ?????????????????????????????????????????????????? | | ?????????????????????????????????????????????????? | | ?????????????????????????????????????????????????? | | ?????????????????????????????????????????????????? | | ?????????????????????????????????????????????????? | | ?????????????????????????????????????????????????? | | ?????????????????????????????????????????????????? | | ?????????????????????????????????????????????????? | | ?????????????????????????????????????????????????? | | ?????????????????????????????????????????????????? | | ?????????????????????????????????????????????????? | | ?????????????????????????????????????????????????? | | ?????????????????????????????????????????????????? | | | | | +----------------------------------------------------+ Best States ------------- Heat Dissipation 25 Energy Generation 12 Energy Capacity 265 Matter Stores 300 Matter Capacity 300 Sight Range 16 Terrain Scan Density 10 Armor Coverage 150 Evasion (%) 40 Recoil Reduction 2 Item Schematics ----------------- None Robot Schematics ------------------ None Fabricated ------------ Nothing Alien Tech Used ----------------- None Achievements -------------- None Challenges ------------ None Game ------ Seed PortableLightpackBeamcaster Manual? 0 Play Time 00:10:41 Cumulative 279.4 hours Start 2024.10.19 @ 15:45:38 End 2024.10.19 @ 15:54:59 Sessions 1 Manual Loads 0 Difficulty Rogue Special Mode None Game No. 160 Rogue 160 Adventurer 0 Explorer 0 Win Type - Total 15 Types 3/2/6/2/1/0/1/0/0 Lore% 80 Gallery% 82 Achievement% 72 Wizard Run 0 Options --------- Layout 0 ASCII 0 Keyboard 0 Movement Arrows Keybinds 0 Fullscreen 2 Font 18/SmallcapsGlow Map View 76x50 Zoom Use 0% Tactical HUD 1 Map Filters NONE Filters NONE Steam 1 RUN: de7fa38f-9f46-498c-a287-c059699f56e1